fUSD/lending_fUSD_20240327
["ID","MTS","AMOUNT","RATE_DAILY","PERIOD"]
[320704179,1711521059062,-151.0,0.00054983,120]
[320704180,1711521059071,-151.0,0.00054983,120]
[320704181,1711521059081,-5800.0,0.00054983,7]
[320704182,1711521059090,-5800.0,0.00054992,7]
[320704183,1711521059099,-9484.8076918,0.00054998,32]
[320704184,1711521059109,-2004.89676574,0.00055,5]
[320704185,1711521059118,-539.1207216,0.00055,55]
[320704186,1711521059127,-250.0,0.00055,120]
[320704187,1711521059136,-10487.0,0.00055,120]
[320704188,1711521059145,-500.0,0.00055,7]
[320704189,1711521059154,-500.0,0.00055,7]
[320704190,1711521059164,-500.00000099,0.00055,30]
[320704191,1711521059173,-293.64,0.00055,30]
[320704192,1711521059182,-5800.0,0.00055,7]
[320704193,1711521059191,-388.48,0.00055,14]
[320704194,1711521059201,-5800.0,0.00055,7]
[320704195,1711521059211,-151.0,0.00055,120]
[320704196,1711521059220,-151.0,0.00055,120]
[320704197,1711521059230,-151.0,0.00055,120]
[320704198,1711521059240,-151.0,0.00055,120]
[320704199,1711521059248,-151.0,0.00055,120]
[320704200,1711521059258,-151.0,0.00055,120]
[320704201,1711521059267,-151.0,0.00055,120]
[320704202,1711521059276,-151.0,0.00055,120]
[320704203,1711521059285,-227.870007,0.00055,120]
[320704204,1711521059294,-227.870007,0.00055,120]
[320704205,1711521059304,-255.031446,0.00055,120]
[320704206,1711521059313,-255.031446,0.00055,120]
[320704207,1711521059322,-151.0,0.00055,120]
[320704208,1711521059332,-151.0,0.00055,120]
[320704209,1711521059341,-151.0,0.00055,120]
[320704210,1711521059350,-193.286613,0.00055,30]
[320704211,1711521059359,-193.286613,0.00055,30]
[320704212,1711521059371,-151.0,0.00055,120]
[320704213,1711521059380,-151.0,0.00055,120]
[320704214,1711521059390,-949.607586,0.00055,120]
[320704215,1711521059399,-949.607586,0.00055,120]
[320704216,1711521059408,-17560.53763991,0.00055,120]
[320704217,1711521059417,-2493.29,0.00055064,120]
[320704218,1711521059427,-170.8,0.000551,30]
[320704219,1711521059435,-716.4015735,0.000551,2]
[320704220,1711521059444,-3099.8901305,0.00055174,20]
[320704221,1711521059453,-151.032713,0.00055198,111]
[320704222,1711521059463,-306.48,0.000552,30]
[320704223,1711521059472,-152.02204846,0.00055305,120]
[320704224,1711521059482,-428.01,0.00055313,2]
[320704225,1711521059491,-156.63077705,0.00055339,2]
[320704226,1711521059499,-685.87,0.00055341,120]
[320704227,1711521059510,-685.87,0.00055341,120]
[320704228,1711521059519,-685.87,0.00055341,120]
[320704229,1711521059529,-685.87,0.00055341,120]
[320704230,1711521059540,-685.87,0.00055341,120]
[320704231,1711521059551,-685.87,0.00055341,120]
[320704232,1711521059560,-685.90846692,0.00055341,120]
[320704233,1711521059569,-150.0,0.00055341,120]
[320704234,1711521059578,-500.0,0.00055342,120]
[320704235,1711521059587,-434.07333887,0.00055342,120]
[320704236,1711521059597,-500.0,0.00055342,120]
[320704237,1711521059607,-500.0,0.00055342,120]
[320704238,1711521059617,-500.0,0.00055342,120]
[320704239,1711521059627,-500.0,0.00055342,120]
[320704240,1711521059636,-898.85,0.00055342,120]
[320704241,1711521059645,-555.68,0.00055342,120]
[320704242,1711521059654,-500.0,0.00055342,120]
[320704243,1711521059663,-500.0,0.00055342,120]
[320704244,1711521059672,-10000.0,0.00055342,2]
[320704245,1711521059681,-500.0,0.00055342,120]
[320704246,1711521059690,-565.4797096,0.00055342,120]
[320704247,1711521059701,-500.0,0.00055342,120]
[320704248,1711521059710,-151.0,0.00055342,120]
[320704249,1711521059720,-151.0,0.00055342,120]
[320704250,1711521059730,-151.0,0.00055342,120]
[320704251,1711521059739,-151.0,0.00055342,120]
[320704252,1711521059750,-151.0,0.00055342,120]
[320704253,1711521059759,-151.0,0.00055342,120]
[320704254,1711521059769,-500.0,0.00055342,120]
[320704255,1711521059779,-500.0,0.00055342,120]
[320704256,1711521059789,-573.56,0.00055342,120]
[320704257,1711521059799,-597.3282056,0.00055342,120]
[320704258,1711521059811,-500.0,0.00055342,120]
[320704259,1711521059825,-500.0,0.00055342,120]
[320704260,1711521059834,-500.0,0.00055342,120]
[320704261,1711521059843,-500.0,0.00055342,120]
[320704262,1711521059852,-500.0,0.00055342,120]
[320704263,1711521059861,-500.0,0.00055342,120]
[320704264,1711521059870,-516.93901271,0.00055342,120]
[320704265,1711521059879,-500.0,0.00055342,120]
[320704266,1711521059889,-500.0,0.00055342,120]
[320704267,1711521059900,-1349.2,0.00055342,120]
[320704268,1711521059909,-151.0,0.00055342,120]
[320704269,1711521059917,-151.0,0.00055342,120]
[320704270,1711521059927,-500.0,0.00055342,120]
[320704271,1711521059936,-293.37463369,0.00055342,120]
[320704272,1711521059946,-517.79835419,0.00055342,120]
[320704273,1711521059955,-192.5152,0.00055342,120]
[320704274,1711521059965,-526.44081979,0.00055342,120]
[320704275,1711521059974,-500.0,0.00055342,120]
[320704276,1711521059987,-500.0,0.00055342,120]
[320704277,1711521059997,-500.0,0.00055342,120]
[320704278,1711521060006,-500.0,0.00055342,120]
[320704279,1711521060015,-500.0,0.00055342,120]
[320704280,1711521060025,-500.0,0.00055342,120]
[320704281,1711521060035,-500.0,0.00055342,120]
[320704282,1711521060044,-502.34579145,0.00055342,120]
[320704283,1711521060055,-500.0,0.00055342,120]
[320704284,1711521060064,-554.18,0.00055342,120]
[320704285,1711521060073,-500.0,0.00055342,120]
[320704286,1711521060083,-151.0,0.00055342,120]
[320704287,1711521060093,-151.0,0.00055342,120]
[320704288,1711521060102,-500.0,0.00055342,120]
[320704289,1711521060111,-151.0,0.00055342,120]
[320704290,1711521060121,-152.462734,0.00055342,120]
[320704291,1711521060131,-500.0,0.00055342,120]
[320704292,1711521060140,-620.25,0.00055342,120]
[320704293,1711521060150,-791.55,0.00055342,120]
[320704294,1711521060159,-500.0,0.00055342,120]
[320704295,1711521060168,-500.0,0.00055342,120]
[320704296,1711521060177,-151.0,0.00055342,120]
[320704297,1711521060186,-151.0,0.00055342,120]
[320704298,1711521060196,-242.6153006,0.00055342,120]
[320704299,1711521060206,-1084.11,0.00055342,120]
[320704300,1711521060215,-510.15,0.00055342,120]
[320704301,1711521060224,-500.0,0.00055342,120]
[320704302,1711521060233,-499.26413052,0.00055342,120]
[320704303,1711521060242,-852.67,0.00055342,120]
[320704304,1711521060252,-592.4,0.00055342,120]
[320704305,1711521060261,-151.0,0.00055342,120]
[320704306,1711521060270,-500.0,0.00055342,120]
[320704307,1711521060279,-151.0,0.00055342,120]
[320704308,1711521060288,-506.98885516,0.00055342,120]
[320704309,1711521060297,-500.0,0.00055342,120]
[320704310,1711521060306,-525.44,0.00055342,120]
[320704311,1711521060316,-551.53,0.00055342,120]
[320704312,1711521060325,-500.0,0.00055342,120]
[320704313,1711521060334,-500.0,0.00055342,120]
[320704314,1711521060343,-171.3548,0.00055342,120]
[320704315,1711521060352,-171.3548,0.00055342,120]
[320704316,1711521060361,-500.0,0.00055342,120]
[320704317,1711521060370,-171.3548,0.00055342,120]
[320704318,1711521060380,-500.0,0.00055342,120]
[320704319,1711521060389,-171.3548,0.00055342,120]
[320704320,1711521060399,-500.0,0.00055342,120]
[320704321,1711521060408,-500.0,0.00055342,120]
[320704322,1711521060417,-500.0,0.00055342,120]
[320704323,1711521060426,-500.0,0.00055342,120]
[320704324,1711521060436,-151.0,0.00055342,120]
[320704325,1711521060445,-151.0,0.00055342,120]
[320704326,1711521060454,-500.0,0.00055342,120]
[320704327,1711521060463,-500.0,0.00055342,120]
[320704328,1711521060471,-509.00214461,0.00055342,120]
[320704329,1711521060481,-500.0,0.00055342,120]
[320704330,1711521060491,-500.0,0.00055342,120]
[320704331,1711521060501,-500.0,0.00055342,120]
[320704332,1711521060511,-600.63694199,0.00055342,120]
[320704333,1711521060521,-500.0,0.00055342,120]
[320704334,1711521060530,-500.0,0.00055342,120]
[320704335,1711521060540,-509.9928841,0.00055342,120]
[320704336,1711521060549,-500.0,0.00055342,120]
[320704337,1711521060559,-500.0,0.00055342,120]
[320704338,1711521060569,-500.0,0.00055342,120]
[320704339,1711521060579,-270.63710466,0.00055342,120]
[320704340,1711521060589,-500.0,0.00055342,120]
[320704341,1711521060598,-500.0,0.00055342,120]
[320704342,1711521060609,-500.0,0.00055342,120]
[320704343,1711521060618,-151.0,0.00055342,120]
[320704344,1711521060628,-152.054815,0.00055342,120]
[320704345,1711521060638,-500.92149912,0.00055342,120]
[320704346,1711521060647,-519.69931136,0.00055342,120]
[320704347,1711521060656,-165.34746248,0.00055342,120]
[320704348,1711521060665,-500.0,0.00055342,120]
[320704349,1711521060674,-500.0,0.00055342,120]
[320704350,1711521060683,-500.0,0.00055342,120]
[320704351,1711521060693,-500.0,0.00055342,120]
[320704352,1711521060702,-500.0,0.00055342,120]
[320704353,1711521060714,-500.0,0.00055342,120]
[320704354,1711521060725,-500.0,0.00055342,120]
[320704355,1711521060736,-500.0,0.00055342,120]
[320704356,1711521060745,-157.477533,0.00055342,7]
[320704357,1711521060755,-157.477533,0.00055342,7]
[320704358,1711521060765,-500.0,0.00055342,120]
[320704359,1711521060774,-500.0,0.00055342,120]
[320704360,1711521060784,-157.477533,0.00055342,7]
[320704361,1711521060794,-157.477533,0.00055342,7]
[320704362,1711521060805,-500.0,0.00055342,120]
[320704363,1711521060815,-500.0,0.00055342,120]
[320704364,1711521060824,-207.543318,0.00055342,120]
[320704365,1711521060833,-207.543318,0.00055342,120]
[320704366,1711521060843,-207.543318,0.00055342,120]
[320704367,1711521060853,-207.543318,0.00055342,120]
[320704368,1711521060863,-714.93,0.00055342,120]
[320704369,1711521060873,-566.32141082,0.00055342,120]
[320704370,1711521060883,-403.58310809,0.00055342,120]
[320704371,1711521060892,-151.0,0.00055342,120]
[320704372,1711521060902,-151.0,0.00055342,120]
[320704373,1711521060912,-576.97,0.00055342,120]
[320704374,1711521060923,-500.0,0.00055342,120]
[320704375,1711521060933,-215.52844488,0.00055342,120]
[320704376,1711521060943,-500.0,0.00055342,120]
[320704377,1711521060954,-500.0,0.00055342,120]
[320704378,1711521060970,-619.31,0.00055342,120]
[320704379,1711521061031,-880.5,0.00055342,120]
[320704380,1711521061040,-500.0,0.00055342,120]
[320704381,1711521061050,-500.0,0.00055342,2]
[320704382,1711521061060,-261.273612,0.00055342,120]
[320704383,1711521061069,-539.35,0.00055342,120]
[320704384,1711521061078,-500.0,0.00055342,120]
[320704385,1711521061088,-502.07744116,0.00055342,120]
[320704386,1711521061098,-151.0,0.00055342,120]
[320704387,1711521061107,-543.59,0.00055342,120]
[320704388,1711521061116,-151.0,0.00055342,120]
[320704389,1711521061126,-681.66,0.00055342,120]
[320704390,1711521061136,-500.0,0.00055342,120]
[320704391,1711521061146,-693.36,0.00055342,120]
[320704392,1711521061155,-500.0,0.00055342,120]
[320704393,1711521061165,-880.23,0.00055342,120]
[320704394,1711521061175,-603.54,0.00055342,120]
[320704395,1711521061185,-570.05,0.00055342,120]
[320704396,1711521061195,-196.167964,0.00055342,14]
[320704397,1711521061206,-196.167964,0.00055342,14]
[320704398,1711521061216,-500.0,0.00055342,120]
[320704399,1711521061226,-1223.28,0.00055342,120]
[320704400,1711521061240,-196.167964,0.00055342,14]
[320704401,1711521061249,-196.167964,0.00055342,14]
[320704402,1711521061259,-500.0,0.00055342,120]
[320704403,1711521061269,-1225.28,0.00055342,120]
[320704404,1711521061278,-634.8,0.00055342,120]
[320704405,1711521061288,-500.0,0.00055342,120]
[320704406,1711521061297,-500.0,0.00055342,120]
[320704407,1711521061307,-500.0,0.00055342,120]
[320704408,1711521061317,-151.64164,0.00055342,120]
[320704409,1711521061327,-151.64164,0.00055342,120]
[320704410,1711521061337,-178.25786,0.00055342,120]
[320704411,1711521061346,-178.25786,0.00055342,120]
[320704412,1711521061356,-544.25,0.00055342,120]
[320704413,1711521061366,-151.64164,0.00055342,120]
[320704414,1711521061375,-500.0,0.00055342,120]
[320704415,1711521061385,-151.64164,0.00055342,120]
[320704416,1711521061394,-178.25786,0.00055342,120]
[320704417,1711521061404,-1166.22,0.00055342,120]
[320704418,1711521061413,-586.63,0.00055342,120]
[320704419,1711521061423,-178.25786,0.00055342,120]
[320704420,1711521061432,-500.0,0.00055342,120]
[320704421,1711521061442,-548.89,0.00055342,120]
[320704422,1711521061453,-669.42,0.00055342,120]
[320704423,1711521061462,-500.0,0.00055342,120]
[320704424,1711521061472,-508.59,0.00055342,120]
[320704425,1711521061481,-500.0,0.00055342,120]
[320704426,1711521061494,-1162.55,0.00055342,120]
[320704427,1711521061504,-2291.77,0.00055342,120]
[320704428,1711521061513,-500.0,0.00055342,120]
[320704429,1711521061522,-500.0,0.00055342,120]
[320704430,1711521061532,-549.54,0.00055342,120]
[320704431,1711521061542,-1366.31,0.00055342,120]
[320704432,1711521061551,-532.52,0.00055342,120]
[320704433,1711521061561,-500.0,0.00055342,120]
[320704434,1711521061570,-595.44,0.00055342,120]
[320704435,1711521061580,-7047.69,0.00055342,120]
[320704436,1711521061589,-502.56,0.00055342,120]
[320704437,1711521061598,-590.24237501,0.00055342,120]
[320704438,1711521061608,-500.0,0.00055342,120]
[320704439,1711521061617,-1081.84,0.00055342,120]
[320704440,1711521061627,-330.20208376,0.00055342,120]
[320704441,1711521061636,-508.48938092,0.00055342,120]
[320704442,1711521061646,-822.65,0.00055342,120]
[320704443,1711521061655,-970.5,0.00055342,120]
[320704444,1711521061666,-491.324185,0.00055342,30]
[320704445,1711521061676,-491.324185,0.00055342,30]
[320704446,1711521061685,-500.0,0.00055342,120]
[320704447,1711521061695,-1171.65,0.00055342,120]
[320704448,1711521061704,-2222.27,0.00055342,120]
[320704449,1711521061714,-491.324185,0.00055342,30]
[320704450,1711521061723,-491.324185,0.00055342,30]
[320704451,1711521061732,-1237.02,0.00055342,120]
[320704452,1711521061744,-632.19242163,0.00055342,120]
[320704453,1711521061754,-668.08,0.00055342,120]
[320704454,1711521061917,-608.98,0.00055342,120]
[320704455,1711521061936,-1242.46,0.00055342,120]
[320704456,1711521061946,-1294.32,0.00055342,120]
[320704457,1711521061956,-500.0,0.00055342,120]
[320704458,1711521061966,-535.17,0.00055342,120]
[320704459,1711521061977,-500.0,0.00055342,120]
[320704460,1711521061988,-500.0,0.00055342,120]
[320704461,1711521061997,-512.777212,0.00055342,120]
[320704462,1711521062007,-717.03,0.00055342,120]
[320704463,1711521062016,-500.0,0.00055342,120]
[320704464,1711521062025,-1040.25,0.00055342,120]
[320704465,1711521062034,-603.075319,0.00055342,120]
[320704466,1711521062044,-603.075319,0.00055342,120]
[320704467,1711521062053,-500.0,0.00055342,120]
[320704468,1711521062063,-500.0,0.00055342,120]
[320704469,1711521062072,-500.0,0.00055342,120]
[320704470,1711521062082,-603.075319,0.00055342,120]
[320704471,1711521062091,-603.075319,0.00055342,120]
[320704472,1711521062101,-500.0,0.00055342,120]
[320704473,1711521062111,-500.0,0.00055342,120]
[320704474,1711521062120,-500.0,0.00055342,120]
[320704475,1711521062130,-935.57,0.00055342,120]
[320704476,1711521062140,-500.0,0.00055342,120]
[320704477,1711521062151,-878.86,0.00055342,120]
[320704478,1711521062162,-500.0,0.00055342,120]
[320704479,1711521062171,-500.0,0.00055342,120]
[320704480,1711521062182,-528.22,0.00055342,120]
[320704481,1711521062192,-500.0,0.00055342,120]
[320704482,1711521062203,-194.51097774,0.00055342,120]
[320704483,1711521062212,-876.06,0.00055342,120]
[320704484,1711521062221,-637.29,0.00055342,120]
[320704485,1711521062231,-999.87,0.00055342,120]
[320704486,1711521062243,-1392.245663,0.00055342,120]
[320704487,1711521062252,-1392.245663,0.00055342,120]
[320704488,1711521062262,-800.78,0.00055342,120]
[320704489,1711521062274,-500.0,0.00055342,120]
[320704490,1711521062284,-500.0,0.00055342,120]
[320704491,1711521062294,-1392.245663,0.00055342,120]
[320704492,1711521062304,-1392.245663,0.00055342,120]
[320704493,1711521062316,-500.0,0.00055342,120]
[320704494,1711521062325,-522.56409499,0.00055342,120]
[320704495,1711521062335,-151.0,0.00055342,120]
[320704496,1711521062346,-181.879668,0.00055342,120]
[320704497,1711521062356,-500.0,0.00055342,120]
[320704498,1711521062365,-500.0,0.00055342,120]
[320704499,1711521062375,-553.13,0.00055342,120]
[320704500,1711521062385,-521.13299979,0.00055342,120]
[320704501,1711521062396,-574.19,0.00055342,120]
[320704502,1711521062406,-823.98,0.00055342,120]
[320704503,1711521062417,-500.0,0.00055342,120]
[320704504,1711521062428,-661.93,0.00055342,120]
[320704505,1711521062439,-500.0,0.00055342,120]
[320704506,1711521062450,-500.0,0.00055342,120]
[320704507,1711521062459,-1089.49,0.00055342,120]
[320704508,1711521062470,-224.04549993,0.00055342,120]
[320704509,1711521062479,-827.87,0.00055342,120]
[320704510,1711521062490,-1454.5,0.00055342,120]
[320704511,1711521062500,-500.0,0.00055342,120]
[320704512,1711521062509,-604.277388,0.00055342,120]
[320704513,1711521062520,-151.0,0.00055342,120]
[320704514,1711521062531,-151.0,0.00055342,120]
[320704515,1711521062542,-151.0,0.00055342,120]
[320704516,1711521062552,-299.47626273,0.00055342,120]
[320704517,1711521062562,-500.0,0.00055342,120]
[320704518,1711521062571,-500.0,0.00055342,120]
[320704519,1711521062582,-155.221815,0.00055342,120]
[320704520,1711521062592,-201.505912,0.00055342,120]
[320704521,1711521062603,-201.505912,0.00055342,120]
[320704522,1711521062614,-1000.42,0.00055342,120]
[320704523,1711521062624,-201.505912,0.00055342,120]
[320704524,1711521062633,-1629.52,0.00055342,120]
[320704525,1711521062642,-201.505912,0.00055342,120]
[320704526,1711521062651,-201.505912,0.00055342,120]
[320704527,1711521062661,-201.505912,0.00055342,120]
[320704528,1711521062671,-500.0,0.00055342,120]
[320704529,1711521062680,-500.0,0.00055342,120]
[320704530,1711521062690,-649.78,0.00055342,120]
[320704531,1711521062700,-1484.09,0.00055342,120]
[320704532,1711521062709,-500.0,0.00055342,120]
[320704533,1711521062719,-151.0,0.00055342,120]
[320704534,1711521062729,-151.0,0.00055342,120]
[320704535,1711521062740,-151.0,0.00055342,120]
[320704536,1711521062751,-926.8,0.00055342,120]
[320704537,1711521062762,-500.0,0.00055342,120]
[320704538,1711521062772,-500.0,0.00055342,120]
[320704539,1711521062782,-500.0,0.00055342,120]
[320704540,1711521062793,-823.71,0.00055342,120]
[320704541,1711521062804,-967.31,0.00055342,120]
[320704542,1711521062816,-698.22,0.00055342,120]
[320704543,1711521062827,-500.0,0.00055342,120]
[320704544,1711521062838,-935.15,0.00055342,120]
[320704545,1711521062849,-151.0,0.00055342,120]
[320704546,1711521062860,-151.0,0.00055342,120]
[320704547,1711521062870,-500.0,0.00055342,120]
[320704548,1711521062881,-500.0,0.00055342,120]
[320704549,1711521062892,-512.65630097,0.00055342,120]
[320704550,1711521062902,-500.0,0.00055342,120]
[320704551,1711521062913,-886.98,0.00055342,120]
[320704552,1711521062923,-1063.66,0.00055342,120]
[320704553,1711521062933,-500.0,0.00055342,120]
[320704554,1711521062944,-564.03,0.00055342,120]
[320704555,1711521062955,-660.04,0.00055342,30]
[320704556,1711521062965,-449.895944,0.00055342,120]
[320704557,1711521062975,-500.0,0.00055342,120]
[320704558,1711521062985,-449.895944,0.00055342,120]
[320704559,1711521062996,-500.0,0.00055342,120]
[320704560,1711521063006,-449.895944,0.00055342,120]
[320704561,1711521063017,-735.21,0.00055342,120]
[320704562,1711521063027,-449.895944,0.00055342,120]
[320704563,1711521063037,-500.0,0.00055342,120]
[320704564,1711521063047,-299.37892799,0.00055342,120]
[320704565,1711521063057,-711.59,0.00055342,120]
[320704566,1711521063067,-218.726235,0.00055342,120]
[320704567,1711521063078,-218.726235,0.00055342,120]
[320704568,1711521063089,-500.0,0.00055342,120]
[320704569,1711521063099,-218.726235,0.00055342,120]
[320704570,1711521063110,-218.726235,0.00055342,120]
[320704571,1711521063121,-517.89074967,0.00055342,120]
[320704572,1711521063131,-2593.77,0.00055342,120]
[320704573,1711521063142,-500.0,0.00055342,120]
[320704574,1711521063153,-810.4,0.00055342,120]
[320704575,1711521063164,-1200.620511,0.00055342,120]
[320704576,1711521063174,-540.245892,0.00055342,120]
[320704577,1711521063183,-1200.620511,0.00055342,120]
[320704578,1711521063192,-540.245892,0.00055342,120]
[320704579,1711521063201,-500.0,0.00055342,120]
[320704580,1711521063211,-764.98,0.00055342,120]
[320704581,1711521063221,-500.0,0.00055342,120]
[320704582,1711521063230,-500.0,0.00055342,120]
[320704583,1711521063241,-1200.620511,0.00055342,120]
[320704584,1711521063251,-540.245892,0.00055342,120]
[320704585,1711521063261,-1200.620511,0.00055342,120]
[320704586,1711521063271,-540.245892,0.00055342,120]
[320704587,1711521063281,-500.0,0.00055342,120]
[320704588,1711521063290,-500.0,0.00055342,120]
[320704589,1711521063300,-500.0,0.00055342,120]
[320704590,1711521063310,-500.0,0.00055342,120]
[320704591,1711521063320,-151.0,0.00055342,120]
[320704592,1711521063330,-151.0,0.00055342,120]
[320704593,1711521063339,-706.7,0.00055342,120]
[320704594,1711521063349,-530.09,0.00055342,120]
[320704595,1711521063358,-151.0,0.00055342,7]
[320704596,1711521063368,-885.31,0.00055342,120]
[320704597,1711521063378,-151.0,0.00055342,7]
[320704598,1711521063387,-500.0,0.00055342,120]
[320704599,1711521063396,-500.0,0.00055342,120]
[320704600,1711521063406,-500.0,0.00055342,120]
[320704601,1711521063415,-523.683972,0.00055342,120]
[320704602,1711521063424,-500.58,0.00055342,120]
[320704603,1711521063434,-523.683972,0.00055342,120]
[320704604,1711521063443,-500.0,0.00055342,120]
[320704605,1711521063453,-523.683972,0.00055342,120]
[320704606,1711521063463,-523.683972,0.00055342,120]
[320704607,1711521063472,-785.51,0.00055342,120]
[320704608,1711521063482,-745.76,0.00055342,120]
[320704609,1711521063492,-1521.44,0.00055342,120]
[320704610,1711521063501,-502.65433627,0.00055342,120]
[320704611,1711521063512,-588.23,0.00055342,120]
[320704612,1711521063523,-628.98,0.00055342,120]
[320704613,1711521063532,-647.79,0.00055342,120]
[320704614,1711521063543,-500.0,0.00055342,120]
[320704615,1711521063553,-500.0,0.00055342,120]
[320704616,1711521063564,-151.0,0.00055342,60]
[320704617,1711521063575,-151.0,0.00055342,60]
[320704618,1711521063586,-576.5,0.00055342,120]
[320704619,1711521063596,-500.0,0.00055342,120]
[320704620,1711521063607,-500.0,0.00055342,120]
[320704621,1711521063617,-151.0,0.00055342,60]
[320704622,1711521063628,-500.0,0.00055342,120]
[320704623,1711521063638,-186.380909,0.00055342,60]
[320704624,1711521063649,-500.0,0.00055342,120]
[320704625,1711521063659,-500.0,0.00055342,120]
[320704626,1711521063671,-500.0,0.00055342,120]
[320704627,1711521063682,-500.0,0.00055342,120]
[320704628,1711521063692,-962.85,0.00055342,120]
[320704629,1711521063702,-500.0,0.00055342,120]
[320704630,1711521063713,-500.0,0.00055342,120]
[320704631,1711521063723,-500.0,0.00055342,120]
[320704632,1711521063735,-910.98,0.00055342,120]
[320704633,1711521063745,-500.0,0.00055342,120]
[320704634,1711521063756,-1358.55,0.00055342,120]
[320704635,1711521063766,-1237.35,0.00055342,120]
[320704636,1711521063775,-500.0,0.00055342,120]
[320704637,1711521063784,-500.0,0.00055342,120]
[320704638,1711521063794,-500.0,0.00055342,120]
[320704639,1711521063804,-500.0,0.00055342,7]
[320704640,1711521063815,-752.08,0.00055342,120]
[320704641,1711521063825,-839.66,0.00055342,120]
[320704642,1711521063834,-530.68278311,0.00055342,120]
[320704643,1711521063844,-500.0,0.00055342,120]
[320704644,1711521063854,-1383.35,0.00055342,120]
[320704645,1711521063864,-1642.74,0.00055342,120]
[320704646,1711521063874,-776.16,0.00055342,120]
[320704647,1711521063884,-500.0,0.00055342,120]
[320704648,1711521063894,-610.62,0.00055342,120]
[320704649,1711521063903,-494.24013652,0.00055342,120]
[320704650,1711521063912,-517.98,0.00055342,120]
[320704651,1711521063921,-500.0,0.00055342,120]
[320704652,1711521063930,-500.0,0.00055342,120]
[320704653,1711521063939,-577.28,0.00055342,120]
[320704654,1711521063949,-639.3,0.00055342,120]
[320704655,1711521063958,-611.8,0.00055342,120]
[320704656,1711521063968,-510.04,0.00055342,120]
[320704657,1711521063979,-500.0,0.00055342,120]
[320704658,1711521063990,-500.0,0.00055342,120]
[320704659,1711521063999,-648.31,0.00055342,120]
[320704660,1711521064008,-720.11,0.00055342,120]
[320704661,1711521064018,-898.75,0.00055342,120]
[320704662,1711521064027,-581.72,0.00055342,120]
[320704663,1711521064037,-500.0,0.00055342,120]
[320704664,1711521064047,-511.69013321,0.00055342,120]
[320704665,1711521064058,-500.0,0.00055342,120]
[320704666,1711521064068,-966.82,0.00055342,120]
[320704667,1711521064077,-500.0,0.00055342,120]
[320704668,1711521064086,-500.0,0.00055342,120]
[320704669,1711521064096,-1026.67,0.00055342,120]
[320704670,1711521064105,-501.83740906,0.00055342,120]
[320704671,1711521064114,-177.051292,0.00055342,120]
[320704672,1711521064123,-177.051292,0.00055342,120]
[320704673,1711521064133,-290.59226887,0.00055342,120]
[320704674,1711521064143,-500.0,0.00055342,120]
[320704675,1711521064153,-177.051292,0.00055342,120]
[320704676,1711521064162,-177.051292,0.00055342,120]
[320704677,1711521064171,-500.0,0.00055342,120]
[320704678,1711521064181,-1026.185319,0.00055342,120]